{"text_format":"1","workbook":"xlsx","n_sheets":4,"sheets":["YR1","YR 2","YR 3","SUMMARY"],"not_rendered":{"charts":0,"images":1,"macros":1,"external_links":0,"defined_names":1,"comments":3,"pivot_tables":0},"unopened":[],"bounds":{"document_bytes":16777216,"sheet_cells":100000,"rows_first":2000,"rows_last":500,"rows_between":2000,"halvings":0,"cell_chars":16384,"cell_head_chars":4096},"cells_cut":0,"cells_raw":0,"read":"whole","date_system":"1900"}

{"sheet":"YR1","index":0,"n_rows":61,"n_cols":12,"rows_kept":61,"cut":false,"hidden":false,"merged":[[4,1,4,5],[5,1,5,5],[29,0,29,2],[31,0,31,2],[32,0,32,2],[9,0,9,2],[10,0,10,2],[12,0,12,2],[13,0,13,2],[19,0,19,2],[45,0,45,2],[45,7,45,9],[38,6,38,8],[44,7,44,9],[43,0,43,2],[44,0,44,2],[40,7,40,9],[41,7,41,9],[42,7,42,9],[40,0,40,2],[41,0,41,2],[47,0,47,11],[60,0,60,1],[53,4,53,7],[55,4,55,7],[58,0,58,1],[1,1,1,11],[42,0,42,2],[43,7,43,9],[0,0,0,11],[3,1,3,5],[3,6,3,7],[7,0,7,2],[8,0,8,2],[33,0,33,2],[20,0,20,2],[22,0,22,2],[23,0,23,2],[25,0,25,2],[26,0,26,2],[2,1,2,5],[28,0,28,2]]}
["Office of Research and Sponsored Programs"]
["TITLE"]
["DATE"," "]
["AGENCY"," ",null,null,null,null,"Year 1"]
["PI"," "]
["CO-PI"," ",null,null,null,null,null,null,null,null,null,"MATCH"]
[]
["RESEARCH SALARIED",null,null,null,null,null,61160,null,null,null,0]
["SUMMER FACULTY ",null,null,null,null,null,61120,null,null,null,0,0]
["FACULTY 12 MONTH ",null,null,null,null,null,61040,null,null,null,0]
["FACULTY 9 MONTH ",null,null,null,null,null,61060,null,null,null,0]
[null,null,null,null,null,null,null,null,null,null," "]
["GRADUATE ASSISTANTS",null,null,null,null,null,61070,null,null,null,0,0]
["COLLEGE ROLL",null,null,null,null,null,61030,null,null,null,0]
[null,null,null,null,null,null,null,null,null,null," "]
[null,null,null,"TOTAL SALARIES",null,null,null,null,null,null,{"$f":"SUM(K8:K15)","v":0},{"$f":"SUM(L8:L15)","v":0}]
[null,null,null,"FRINGE BENEFITS",null,null,66104,0.31140000000000001,null,null,{"$f":"(SUM(K8:K12)*H17)","v":0}]
[null,null,null,"TOTAL SALARY W/FRINGE",null,null,null,null,null,null,{"$f":"SUM(K16:K17)","v":0},{"$f":"SUM(L16:L17)","v":0}]
[null,null,null,null,null,null,null,null,null,null," "]
["TRAVEL",null,null,null,null,null,72605,null,null,null,0]
["SUPPLIES - OTHER",null,null,null,null,null,72199,null,null,null,0]
[null,null,null,null,null,null,null,null,null,null," "]
["POSTAGE/ MAIL",null,null,null,null,null,72220,null,null,null,0]
["PUBLICATIONS COSTS",null,null,null,null,null,74250,null,null,null,0]
[null,null,null,null,null,null,null,null,null,null," "]
["OUTSIDE SERVICES ",null,null,null,null,null,74140,null,null,null,0]
["MISCELLANEOUS",null,null,null,null,null,72299,null,null,null,0]
[null,null,null,null,null,null,null,null,null,null," "]
["SUBCONTRACT 1",null,null,null,null,null,"74137a",null,null,null,0]
["SUBCONTRACT 2",null,null,null,null,null,"74137b",null,null,null,0]
[]
["DGRATS PHD TUITION MATCH ",null,null,null,null,null,73510,null,null,null,0]
["TUITION",null,null,null,null,null,73510,null,null,null,0]
["CAPITAL EQUIPMENT",null,null,null,null,null,79130,null,null,null,0]
[null,null,null,null,null,null,null,null,null,null,0]
[null,null,null,"INDIRECT COSTS",null,null,"76115R",{"$f":"+K36/SUM(K18:K34)","v":{"$error":"#DIV/0!"}},null,null,{"$f":"SUM(K18:K27)*$B$37+IF(K29>=25000,25000*$B$37,K29*$B$37)+IF(K30>=25000,25000*$B$37,K30*$B$37)","v":0},0]
["MTDC",0.44869999999999999,null,null,"TOTAL",null,null,null,null,null,{"$f":"SUM(K18:K36)","v":0},{"$f":"SUM(L18:L36)","v":0}]
[]
["PROPOSAL TYPE:",null,"New",null,"Renewal",null,"Continuation",null,null,null,"Supplement"]
["Will the following be involved in this project, If the answer to any of the following questions is \"yes\", please secure signature as indicated."]
["*Human Subjects………………………..",null,null,null,"no",null,"yes","Institutional Review Board"]
["*Vertebrate Animals…………………..",null,null,null,"no",null,"yes","IACUC Committee Chair"]
["Hazardous Material/Chemicals……….",null,null,null,"no",null,"yes","Safety Committee Chair"]
["Biohazardous Materials…………",null,null,null,"no",null,"yes","Biosafety Committee Chair"]
["Ionizing Radiation…………………………",null,null,null,"no",null,"yes","Radiation Safety Comm Chair"]
["Export Controlled Technology",null,null,null,"no",null,"yes","Export Control Representative"]
[]
["Is space (including Renovations, Utility Systems etc.) currently assigned adequate for this project, if no obtain College Dean Signature."]
["*PRIOR APPROVAL REQUIRED",null,null,null,null,null,"Yes",null,"No","College Dean"]
[]
["I have received, read and understand the University policy on Objectivity in Research which addresses conflict of interest."]
["There is no person responsible for the design, conduct or reporting of the proposed research who has a financial interest that could be a potential and/or real"]
["conflict of interest."]
[null,null,null,null,"Principal Investigator (Signature Required)"]
["There is a potential for a conflict of interest, and the financial interest(s) has been disclosed."]
[null,null,null,null,"Principal Investigator (Signature Required)"]
["DID YOU HEAR ABOUT THIS OPPORTUNITY THROUGH THE RESEARCH OFFICE? _________Yes___________No"]
[]
["P.I.",null,null,null,null,null,"Office of the Dean"]
[]
["Dept Head",null,null,null,null,null,"Director for OSP"]

{"sheet":"YR 2","index":1,"n_rows":60,"n_cols":13,"rows_kept":60,"cut":false,"hidden":false,"merged":[[0,0,0,11],[3,1,3,4],[4,1,4,4],[5,1,5,4],[2,1,2,4],[3,5,3,6],[28,0,28,3],[29,0,29,3],[31,0,31,3],[32,0,32,3],[33,0,33,3],[25,0,25,3],[26,0,26,3],[7,0,7,3],[8,0,8,3],[10,0,10,3],[12,0,12,3],[13,0,13,3],[19,0,19,3],[20,0,20,3],[46,1,46,11],[52,4,52,7],[54,4,54,7],[57,0,57,1],[59,0,59,1],[45,0,45,2],[45,7,45,9],[41,0,41,2],[41,7,41,9],[1,1,1,11],[38,6,38,8],[40,0,40,2],[40,7,40,9],[42,0,42,2],[42,7,42,9],[43,0,43,2],[43,7,43,9],[44,0,44,2],[44,7,44,9],[22,0,22,3],[23,0,23,3]]}
["Office of Research and Sponsored Programs"]
["TITLE"," "]
["DATE",{"$f":"TODAY()","v":"2020-06-08"}]
["AGENCY"," ",null,null,null,"YEAR 2"]
["PI"," "]
["CO-PI"," ",null,null,null,null,null,null,null,null,null,"MATCH"]
[]
["RESEARCH SALARIED",null,null,null,null,null,61160,null,null,null,{"$f":"'YR1'!K8*1.03","v":0}]
["SUMMER FACULTY",null,null,null,null,null,61120,null,null,null,{"$f":"'YR1'!K9*1.03","v":0}]
["FACULTY 12 MONTH",null,null,null,null,null,61040,null,null,null,{"$f":"'YR1'!K10*1.03","v":0}]
["FACULTY 9 MONTH",null,null,null,null,null,61060,null,null,null,{"$f":"'YR1'!K11*1.03","v":0}]
[]
["GRADUATE ASSISTANTS",null,null,null,null,null,61070,null,null,null,{"$f":"'YR1'!K13*1.03","v":0}]
["COLLEGE ROLL",null,null,null,null,null,61030,null,null,null,{"$f":"'YR1'!K14*1.03","v":0}]
[]
[null,null,null,"TOTAL SALARIES",null,null,null,null,null,null,{"$f":"SUM(K8:K15)","v":0}]
[null,null,null,"FRINGE BENEFITS",null,null,66104,{"$f":"+'YR1'!H17","v":0.31140000000000001},null,null,{"$f":"(SUM(K8:K11))*H17","v":0}]
[null,null,null,"TOTAL SALARY W/FRINGE",null,null,null,null,null,null,{"$f":"SUM(K16:K17)","v":0}]
[]
["TRAVEL",null,null,null,null,null,72605,null,null,null,0]
["SUPPLIES - OTHER",null,null,null,null,null,72199,null,null,null,0]
[]
["POSTAGE/ MAIL",null,null,null,null,null,72220,null,null,null,0]
["PUBLICATIONS COSTS",null,null,null,null,null,74250,null,null,null,0]
[]
["OUTSIDE SERVICES",null,null,null,null,null,74140,null,null,null,0]
["MISCELLANEOUS",null,null,null,null,null,72299,null,null,null,0]
[null,null,null,null,null,null,null,null,null,null,null,null," "]
["SUBCONTRACT 1",null,null,null,null,null,"74137a",null,null,null,0,null," "]
["SUBCONTRACT 2",null,null,null,null,null,"74137b",null,null,null,0]
[]
["DGRATS PHD TUITION MATCH ",null,null,null,null,null,73510,null,null,null,0,{"$f":"+'YR1'!L32*1.03","v":0}]
["TUITION",null,null,null,null,null,73510,null,null,null,{"$f":"+'YR1'!K33*1.03","v":0}]
["CAPITAL EQUIPMENT",null,null,null,null,null,79130]
[]
[null,null,null,"INDIRECT COSTS",null,null,"76115R",{"$f":"+K36/SUM(K18:K34)","v":{"$error":"#DIV/0!"}},null,null,{"$f":"SUM(K18:K27)*$B$37+IF('YR1'!K29>=25000,0,(IF(K29+'YR1'!K29>=25000,(25000-'YR1'!K29)*$B$37,K29*$B$37)))+IF('YR1'!K30>=25000,0,(IF(K30+'YR1'!K30>=25000,(25000-'YR1'!K30)*$B$37,K30*$B37)))","v":0},{"$f":"SUM(L8+L9+L10+L11+L12+L13+L14+L17+L20+L21+L22+L23+L24+L25+L26+L28+L29+L30)*B37","v":0}]
["MTDC",{"$f":"+'YR1'!B37","v":0.44869999999999999},null,null,"TOTAL",null,null,null,null,null,{"$f":"SUM(K18:K36)","v":0},{"$f":"SUM(L18:L36)","v":0}]
[]
["PROPOSAL TYPE:",null,"New",null,"Renewal",null,"Continuation",null,null,null,"Supplement"]
["Will the following be involved in this project, If the answer to any of the following questions is \"yes\", please secure signature as indicated."]
["*Human Subjects………………………..",null,null,null,"no",null,"yes","Institutional Review Board"]
["*Vertebrate Animals…………………..",null,null,null,"no",null,"yes","IACUC Committee Chair"]
["Hazardous Material/Chemicals……….",null,null,null,"no",null,"yes","Safety Committee Chair"]
["Biohazardous Materials…………",null,null,null,"no",null,"yes","Biosafety Committee Chair"]
["Ionizing Radiation…………………………",null,null,null,"no",null,"yes","Radiation Safety Comm Chair"]
["Export Controlled Technology",null,null,null,"no",null,"yes","Export Control Representative"]
[null,"Is space (including Renovations, Utility Systems etc.) currently assigned adequate for this project, if no obtain College Dean Signature."]
["*PRIOR APPROVAL REQUIRED",null,null,null,null,null,"Yes",null,"No","College Dean"]
[]
["I have received, read and understand the University policy on Objectivity in Research which addresses conflict of interest."]
["There is no person responsible for the design, conduct or reporting of the proposed research who has a financial interest that could be a potential and/or real"]
["conflict of interest."]
[null,null,null,null,"Principal Investigator (Signature Required)"]
["There is a potential for a conflict of interest, and the financial interest(s) has been disclosed."]
[null,null,null,null,"Principal Investigator (Signature Required)"]
["DID YOU HEAR ABOUT THIS OPPORTUNITY THROUGH THE RESEARCH OFFICE? _________Yes___________No"]
[]
["P.I.",null,null,null,null,null,"Office of the Dean"]
[]
["Dept Head",null,null,null,null,null,"Director for OSP"]

{"sheet":"YR 3","index":2,"n_rows":60,"n_cols":13,"rows_kept":60,"cut":false,"hidden":false,"merged":[[29,0,29,2],[31,0,31,3],[32,0,32,2],[33,0,33,2],[22,0,22,2],[23,0,23,2],[25,0,25,2],[26,0,26,2],[28,0,28,2],[19,0,19,2],[15,3,15,5],[16,3,16,5],[17,3,17,5],[20,0,20,2],[8,0,8,2],[9,0,9,2],[10,0,10,2],[12,0,12,2],[13,0,13,2],[4,1,4,4],[5,1,5,4],[3,5,3,6],[2,1,2,4],[7,0,7,2],[46,1,46,11],[52,4,52,7],[54,4,54,7],[57,0,57,1],[59,0,59,1],[0,0,0,11],[45,0,45,2],[45,7,45,9],[41,0,41,2],[41,7,41,9],[1,1,1,11],[38,6,38,8],[40,0,40,2],[40,7,40,9],[42,0,42,2],[42,7,42,9],[43,0,43,2],[43,7,43,9],[44,0,44,2],[44,7,44,9],[3,1,3,4]]}
["Office of Research and Sponsored Programs"]
["TITLE"," "]
["DATE",{"$f":"TODAY()","v":"2020-06-08"}]
["AGENCY"," ",null,null,null,"YEAR 3"]
["PI"," "]
["CO-PI"," ",null,null,null,null,null,null,null,null,null,"MATCH"]
[]
["RESEARCH SALARIED",null,null,null,null,null,61160,null,null,null,{"$f":"'YR 2'!K8*1.03","v":0}]
["SUMMER FACULTY",null,null,null,null,null,61120,null,null,null,{"$f":"'YR 2'!K9*1.03","v":0}]
["FACULTY 12 MONTH",null,null,null,null,null,61040,null,null,null,{"$f":"'YR 2'!K10*1.03","v":0}]
["FACULTY 9 MONTH",null,null,null,null,null,61060,null,null,null,{"$f":"'YR 2'!K11*1.03","v":0}]
[]
["GRADUATE ASSISTANTS",null,null,null,null,null,61070,null,null,null,{"$f":"'YR 2'!K13*1.03","v":0}]
["COLLEGE ROLL",null,null,null,null,null,61030,null,null,null,{"$f":"'YR 2'!K14*1.03","v":0}]
[]
[null,null,null,"TOTAL SALARIES",null,null,null,null,null,null,{"$f":"SUM(K8:K14)","v":0}]
[null,null,null,"FRINGE BENEFITS",null,null,66104,{"$f":"+'YR1'!H17","v":0.31140000000000001},null,null,{"$f":"(SUM(K8:K11))*H17","v":0}]
[null,null,null,"TOTAL SALARY W/FRINGE",null,null,null,null,null,null,{"$f":"SUM(K16:K17)","v":0}]
[]
["TRAVEL",null,null,null,null,null,72605,null,null,null,0]
["SUPPLIES - OTHER",null,null,null,null,null,72199,null,null,null,0]
[]
["POSTAGE/ MAIL",null,null,null,null,null,72220,null,null,null,0]
["PUBLICATIONS COSTS",null,null,null,null,null,74250,null,null,null,0]
[]
["OUTSIDE SERVICES",null,null,null,null,null,74140,null,null,null,0]
["MISCELLANEOUS",null,null,null,null,null,72299,null,null,null,0]
[]
["SUBCONTRACT 1",null,null,null,null,null,"74137a",null,null,null,0]
["SUBCONTRACT 2",null,null,null,null,null,"74137b",null,null,null,0]
[]
["DGRATS PHD TUITION MATCH ",null,null,null,null,null,73510,null,null,null,0]
["TUITION",null,null,null,null,null,73510,null,null,null,{"$f":"+'YR 2'!K33*1.03","v":0}]
["CAPITAL EQUIPMENT",null,null,null,null,null,79130]
[]
[null,null,null,"INDIRECT COSTS",null,null,"76115R",{"$f":"+K36/SUM(K18:K34)","v":{"$error":"#DIV/0!"}},null,null,{"$f":"SUM(K18:K27)*$B$37+IF(('YR1'!K29+'YR 2'!K29)>=25000,0,IF((K29+'YR1'!K29+'YR 2'!K29)>=25000,25000-('YR1'!K29+'YR 2'!K29+K29)*$B$37,K29*$B$37))+IF(('YR1'!K30+'YR 2'!K30)>=25000,0,IF((K30+'YR1'!K30+'YR 2'!K30)>=25000,25000-('YR1'!K30+'YR 2'!K30+K30)*$B$37,K30*$B$37))","v":0},null," "]
["MTDC",{"$f":"+'YR1'!B37","v":0.44869999999999999},null,null,"TOTAL",null,null,null,null,null,{"$f":"SUM(K18:K36)","v":0}]
[]
["PROPOSAL TYPE:",null,"New",null,"Renewal",null,"Continuation",null,null,null,"Supplement"]
["Will the following be involved in this project, If the answer to any of the following questions is \"yes\", please secure signature as indicated."]
["*Human Subjects………………………..",null,null,null,"no",null,"yes","Institutional Review Board"]
["*Vertebrate Animals…………………..",null,null,null,"no",null,"yes","IACUC Committee Chair"]
["Hazardous Material/Chemicals……….",null,null,null,"no",null,"yes","Safety Committee Chair"]
["Biohazardous Materials…………",null,null,null,"no",null,"yes","Biosafety Committee Chair"]
["Ionizing Radiation…………………………",null,null,null,"no",null,"yes","Radiation Safety Comm Chair"]
["Export Controlled Technology",null,null,null,"no",null,"yes","Export Control Representative"]
[null,"Is space (including Renovations, Utility Systems etc.) currently assigned adequate for this project, if no obtain College Dean Signature."]
["*PRIOR APPROVAL REQUIRED",null,null,null,null,null,"Yes",null,"No","College Dean"]
[]
["I have received, read and understand the University policy on Objectivity in Research which addresses conflict of interest."]
["There is no person responsible for the design, conduct or reporting of the proposed research who has a financial interest that could be a potential and/or real"]
["conflict of interest."]
[null,null,null,null,"Principal Investigator (Signature Required)"]
["There is a potential for a conflict of interest, and the financial interest(s) has been disclosed."]
[null,null,null,null,"Principal Investigator (Signature Required)"]
["DID YOU HEAR ABOUT THIS OPPORTUNITY THROUGH THE RESEARCH OFFICE? _________Yes___________No"]
[]
["P.I.",null,null,null,null,null,"Office of the Dean"]
[]
["Dept Head",null,null,null,null,null,"Director for OSP"]

{"sheet":"SUMMARY","index":3,"n_rows":60,"n_cols":13,"rows_kept":60,"cut":false,"hidden":false,"merged":[[31,0,31,3],[32,0,32,3],[33,0,33,3],[25,0,25,3],[26,0,26,3],[28,0,28,3],[19,0,19,3],[20,0,20,3],[22,0,22,3],[23,0,23,3],[29,0,29,3],[8,0,8,3],[9,0,9,3],[10,0,10,3],[12,0,12,3],[13,0,13,3],[3,1,3,4],[4,1,4,4],[5,1,5,4],[3,6,3,9],[7,0,7,3],[46,1,46,11],[52,4,52,7],[54,4,54,7],[57,0,57,1],[59,0,59,1],[0,0,0,11],[45,0,45,2],[45,7,45,9],[41,0,41,2],[41,7,41,9],[1,1,1,11],[38,6,38,8],[40,0,40,2],[40,7,40,9],[42,0,42,2],[42,7,42,9],[43,0,43,2],[43,7,43,9],[44,0,44,2],[44,7,44,9],[2,1,2,4]]}
["Office of Research and Sponsored Programs"]
["TITLE"," "]
["DATE",{"$f":"TODAY()","v":"2020-06-08"}]
["AGENCY"," ",null,null,null,null,"YEAR 1, YEAR 2, AND YEAR 3"]
["PI"," "]
["CO-PI"," ",null,null,null,null,null,null,null,null,null,"MATCH"]
[]
["RESEARCH SALARIED",null,null,null,null,null,61160,null,null,null,{"$f":"+'YR1'!K8+'YR 2'!K8+'YR 3'!K8","v":0}]
["SUMMER FACULTY",null,null,null,null,null,61120,null,null,null,{"$f":"+'YR1'!K9+'YR 2'!K9+'YR 3'!K9","v":0}]
["FACULTY 12 MONTH",null,null,null,null,null,61040,null,null,null,{"$f":"+'YR1'!K10+'YR 2'!K10+'YR 3'!K10","v":0}]
["FACULTY 9 MONTH",null,null,null,null,null,61060,null,null,null,{"$f":"+'YR1'!K11+'YR 2'!K11+'YR 3'!K11","v":0}]
[null,null,null,null,null,null,null,null,null,null," "]
["GRADUATE ASSISTANTS",null,null,null,null,null,61070,null,null,null,{"$f":"+'YR1'!K13+'YR 2'!K13+'YR 3'!K13","v":0}]
["COLLEGE ROLL",null,null,null,null,null,61030,null,null,null,{"$f":"+'YR1'!K14+'YR 2'!K14+'YR 3'!K14","v":0}]
[]
[null,null,null,"TOTAL SALARIES",null,null,null,null,null,null,{"$f":"+'YR1'!K16+'YR 2'!K16+'YR 3'!K16","v":0}]
[null,null,null,"FRINGE BENEFITS",null,null,66104,{"$f":"+'YR1'!H17","v":0.31140000000000001},null,null,{"$f":"+'YR1'!K17+'YR 2'!K17+'YR 3'!K17","v":0}]
[null,null,null,"TOTAL SALARY W/FRINGE",null,null,null,null,null,null,{"$f":"+'YR1'!K18+'YR 2'!K18+'YR 3'!K18","v":0}]
[]
["TRAVEL",null,null,null,null,null,72605,null,null,null,{"$f":"+'YR1'!K20+'YR 2'!K20+'YR 3'!K20","v":0}]
["SUPPLIES - OTHER",null,null,null,null,null,72199,null,null,null,{"$f":"+'YR1'!K21+'YR 2'!K21+'YR 3'!K21","v":0}]
[null,null,null,null,null,null,null,null,null,null," "]
["POSTAGE/ MAIL",null,null,null,null,null,72220,null,null,null,{"$f":"+'YR1'!K23+'YR 2'!K23+'YR 3'!K23","v":0}]
["PUBLICATIONS COSTS",null,null,null,null,null,74250,null,null,null,0]
[null,null,null,null,null,null,null,null,null,null," "]
["OUTSIDE SERVICES",null,null,null,null,null,74140,null,null,null,{"$f":"+'YR1'!K26+'YR 2'!K26+'YR 3'!K26","v":0}]
["MISCELLANEOUS",null,null,null,null,null,72299,null,null,null,{"$f":"+'YR1'!K27+'YR 2'!K27+'YR 3'!K27","v":0}]
[null,null,null,null,null,null,null,null,null,null," "]
["SUBCONTRACT 1",null,null,null,null,null,"74137a",null,null,null,{"$f":"+'YR1'!K29+'YR 2'!K29+'YR 3'!K29","v":0}]
["SUBCONTRACT 2",null,null,null,null,null,"74137b",null,null,null,{"$f":"+'YR1'!K30+'YR 2'!K30+'YR 3'!K30","v":0}]
[null,null,null,null,null,null,null,null,null,null," "]
["DGRATS PHD TUITION MATCH ",null,null,null,null,null,73510,null,null,null,{"$f":"'YR1'!K32+'YR 2'!K32+'YR 3'!K32","v":0}]
["TUITION",null,null,null,null,null,73510,null,null,null,{"$f":"+'YR1'!K33+'YR 2'!K33+'YR 3'!K33","v":0}]
["CAPITAL EQUIPMENT",null,null,null,null,null,79130,null,null,null,0,null," "]
[]
[null,null,null,"INDIRECT COSTS",null,null,"76115R",{"$f":"+K36/SUM(K18:K34)","v":{"$error":"#DIV/0!"}},null,null,{"$f":"+'YR1'!K36+'YR 2'!K36+'YR 3'!K36","v":0}]
["MTDC",{"$f":"+'YR1'!B37","v":0.44869999999999999},null,null,"TOTAL",null,null,null,null,null,{"$f":"+'YR1'!K37+'YR 2'!K37+'YR 3'!K37","v":0}]
[null,null,null,null,null,null,null,null,null,null," "]
["PROPOSAL TYPE:",null,"New",null,"Renewal",null,"Continuation",null,null,null,"Supplement"]
["Will the following be involved in this project, If the answer to any of the following questions is \"yes\", please secure signature as indicated."]
["*Human Subjects………………………..",null,null,null,"no",null,"yes","Institutional Review Board"]
["*Vertebrate Animals…………………..",null,null,null,"no",null,"yes","IACUC Committee Chair"]
["Hazardous Material/Chemicals……….",null,null,null,"no",null,"yes","Safety Committee Chair"]
["Biohazardous Materials…………..",null,null,null,"no",null,"yes","Biosafety Committee Chair"]
["Ionizing Radiation…………………………",null,null,null,"no",null,"yes","Radiation Safety Comm Chair"]
["Export Controlled Technology",null,null,null,"no",null,"yes","Export Control Representative"]
[null,"Is space (including Renovations, Utility Systems etc.) currently assigned adequate for this project, if no obtain College Dean Signature."]
["*PRIOR APPROVAL REQUIRED",null,null,null,null,null,"Yes",null,"No","College Dean"]
[]
["I have received, read and understand the University policy on Objectivity in Research which addresses conflict of interest."]
["There is no person responsible for the design, conduct or reporting of the proposed research who has a financial interest that could be a potential and/or real"]
["conflict of interest."]
[null,null,null,null,"Principal Investigator (Signature Required)"]
["There is a potential for a conflict of interest, and the financial interest(s) has been disclosed."]
[null,null,null,null,"Principal Investigator (Signature Required)"]
["DID YOU HEAR ABOUT THIS OPPORTUNITY THROUGH THE RESEARCH OFFICE? _________Yes___________No"]
[]
["P.I.",null,null,null,null,null,"Office of the Dean"]
[]
["Dept Head",null,null,null,null,null,"Director for OSP"]